Cogmind - Beta 16.1 @@@ ROGUE MODE // 2026.03.06 @ 20:13:55 Player: Zable Result: Destroyed by D-53 Grenadier with Mini Grenade Launcher Performance ------------- Evolutions (0) 0 Regions Visited (2) 400 Robots Destroyed (7) 35 Value Destroyed (76) 76 Prototype IDs (0) 0 Alien Tech Used (0) 0 Bonus (0) 0 TOTAL SCORE: 511 Bonus ------- None Cogmind --------- Core Integrity 0/250 Matter 145/300 Energy 92/100 System Corruption 0% Temperature Cool (0) Movement Rolling (100) Location -10/Mines Parts ------- > --- POWER (1) -------- (None) > --- PROPULSION (2) --- Compact Wheel > --- UTILITY (2) ------ Small Storage Unit > --- WEAPON (2) ------- (None) > --- INVENTORY (8) ---- Ion Engine Light Treads Light Treads Small Laser Mining Laser Peak State ------------ > --- POWER ------------ Ion Engine > --- PROPULSION ------- Aluminum Leg Aluminum Leg > --- UTILITY ---------- Small Storage Unit Seismic Detector > --- WEAPON ----------- Assault Rifle Rocket Launcher > --- INVENTORY -------- Ion Engine Light Treads Light Treads Wheel Compact Wheel Small Laser Assault Rifle Mining Laser [Rating: 8] Favorites ----------- Power Ion Engine Engine Ion Engine Propulsion Aluminum Leg Leg Aluminum Leg Wheel Wheel Utility Small Storage Unit Device Seismic Detector Storage Small Storage Unit Weapon Assault Rifle Energy Gun Small Laser Ballistic Gun Assault Rifle Launcher Rocket Launcher Build | -11 -10 -10 ------- Run | Yrd Mat Min Slots Evolved . | . . . Power . | . . . Propulsion . | . . . Utility . | . . . Weapon . | . . . Parts Attached 6 | 2 . 4 Power . | . . . Engine . | . . . Core . | . . . Reactor . | . . . Propulsion 2 | . . 2 Treads . | . . . Leg . | . . . Wheel 2 | . . 2 Hover . | . . . Flight . | . . . Utility 1 | 1 . . Device 1 | 1 . . Storage . | . . . Processor . | . . . Hackware . | . . . Protection . | . . . Artifact . | . . . Weapon 3 | 1 . 2 Energy Gun . | . . . Energy Cannon . | . . . Ballistic Gun 2 | 1 . 1 Ballistic Cannon . | . . . Launcher 1 | . . 1 Special Weapon . | . . . Impact Weapon . | . . . Slashing Weapon . | . . . Piercing Weapon . | . . . Special Melee Weapon . | . . . Unidentified Prototypes . | . . . Parts Lost 8 | . . 8 Power 1 | . . 1 Propulsion 3 | . . 3 Utility 1 | . . 1 Weapon 3 | . . 3 Highest Loss Streak 6 | . . 6 To Critical Strikes . | . . . Average Backups 6 | 6 6 7 Power 1 | 1 1 1 Propulsion 3 | 4 4 3 Utility . | . . . Weapon 1 | 1 1 2 Tool/Special . | . . . Unused Backups 13 | 5 . 8 Power 3 | 1 . 2 Propulsion 6 | 2 . 4 Utility 1 | 1 . . Weapon 3 | 1 . 2 Tool/Special . | . . . Average Slot Usage (%) 94 | . 100 89 Engine 13 | . 14 12 Leg 24 | . 28 21 Device 13 | . 14 12 Storage 14 | . 14 14 Ballistic Gun 24 | . 28 21 Launcher 2 | . . 5 Peak Build Rating 8 | 7 7 8 Average Rating 6 | 6 7 6 On Entrance 6 | 6 7 7 Avg Prop Armor Cover (%) 11 | . . 11 Naked Turns . | . . . Heaviest Build 17 | 15 15 17 Greatest Support 20 | 20 20 20 Greatest Overweight (x) 1 | . . 1 Average Overweight (x) . | . . . Largest Inventory Capacity 8 | 8 8 8 Average Capacity 8 | 8 8 8 Most Carried 8 | 6 7 8 Average Carried 6 | 6 6 7 Final Capacity 8 | 8 8 8 Final Carried 7 | 6 7 5 Class Distribution -------------------- 100% | Mutant Dominant Class ---------------- Mutant | -10/Materials Mutant | -10/Mines Resources | -11 -10 -10 ----------- Run | Yrd Mat Min Matter Collected 269 | 224 21 24 Remotely . | . . . Salvage Created 196 | 51 86 59 Parts 16 | 6 10 . Haulers Intercepted . | . . . Recyclers Shooed . | . . . Parts Field Recycled . | . . . Retrieved Matter . | . . . Parts Self-Destructed . | . . . Prevented . | . . . Parts Restored . | . . . Kills | -11 -10 -10 ------- Run | Yrd Mat Min Combat Hostiles Destroyed 22 | . 2 20 Guns 5 | . 2 3 AOE 17 | . . 17 Classes Destroyed 4 | 1 2 1 Tunneler 2 | 2 . . Watcher 2 | . 2 . Swarmer 3 | . 2 1 Assembled 19 | . . 19 Best Kill Streak 19 | 1 2 19 Combat Bots Only 19 | . 2 19 Max Kills in Single Turn 7 | 1 2 7 Gunslinging 1 | . 1 . Exploded 7 | . . 7 Melee . | . . . Uniques/NPCs Destroyed . | . . . Combat | -11 -10 -10 -------- Run | Yrd Mat Min Hostile Shots Fired 50 | . 6 44 Missed 12 | . 2 10 Hits 38 | . 4 34 Melee 3 | . . 3 Projectile 35 | . 4 31 AOE 11 | . . 11 Part Disruptions 1 | . . 1 Damage Taken 886 | . 33 853 Core 259 | . 17 242 Absorbed by Shields . | . . . Core Remaining (%) 100 | 100 . . Volleys Fired 29 | 3 6 20 Largest 2 | 2 2 2 Hottest 40 | 40 40 40 Shots Fired 44 | 6 12 26 Gun 35 | 6 12 17 Cannon . | . . . Launcher 9 | . . 9 Special . | . . . Kinetic 35 | 6 12 17 Thermal . | . . . Explosive 9 | . . 9 Electromagnetic . | . . . Robot Hit Streak 6 | 6 3 3 Robot Miss Streak 4 | . 4 4 Penetration Max . | . . . Secondary Targets 2 | . 1 1 Max Gunslinging Chain 1 | . 1 1 Shots Hit Robots 20 | 6 6 8 Core Hits 40 | 2 4 34 Critical Kills . | . . . Critical Parts Destroyed . | . . . Critical Strikes . | . . . Melee Attacks . | . . . Impact . | . . . Slashing . | . . . Piercing . | . . . Sneak Attacks . | . . . Combat Hostiles . | . . . Follow-up Attacks . | . . . Damage Inflicted 1419 | 80 94 1245 Guns 277 | 80 94 103 Cannons . | . . . Explosions 1142 | . . 1142 Melee . | . . . Ramming . | . . . Kinetic 277 | 80 94 103 Thermal . | . . . Explosive 1142 | . . 1142 Electromagnetic . | . . . Impact . | . . . Slashing . | . . . Piercing . | . . . Highest Corruption . | . . . Average Corruption . | . . . Corruption Purged . | . . . Corruption Blocked . | . . . Overload Shots . | . . . Overflow Damage 26 | . . 26 Projectiles . | . . . Explosions 26 | . . 26 Melee . | . . . Knockbacks . | . . . Impact . | . . . Kinetic . | . . . Secondary . | . . . Self-Inflicted Damage 57 | . . 57 Shots 2 | . . 2 Rammed . | . . . Targets Rammed . | . . . Kicked . | . . . Crushed . | . . . Highest Temperature 16 | . . 16 Average Temperature 9 | . . 9 Received Heat Transfer 120 | . . 120 Siege Activations . | . . . Martial Activations . | . . . Shielding Activations . | . . . Robots Disrupted . | . . . Combat Hostiles . | . . . Robots Corrupted . | . . . Combat Hostiles . | . . . Parts Fried . | . . . Impact Corruptions . | . . . Robots Melted . | . . . Combat Hostiles . | . . . Parts Melted . | . . . Heat Transferred . | . . . Parts Sabotaged . | . . . Parts Stolen . | . . . Parts Stripped . | . . . Power Chain Reactions . | . . . Alert | -11 -10 -10 ------- Run | Yrd Mat Min Maximum Alert Level . | . . . Low Security (%) 100 | 100 100 100 Level 1 . | . . . Level 2 . | . . . Level 3 . | . . . Level 4 . | . . . Level 5 . | . . . High Security . | . . . Max Security . | . . . Peak Influence 92 | 5 40 92 Initial 15 | . 3 15 Average 22 | 1 7 48 Influence Increases 194 | 10 67 117 Destroy 0b10 Robot/C 60 | . 40 20 Destroy 0b10 Robot/NC 20 | 10 10 . Destroy Leader 14 | . 4 10 Successful Hack 13 | . 13 . Destroy Structure 57 | . . 57 Lose Combat Pursuer 30 | . . 30 Influence Decreases 194 | 5 32 157 Entered New Map 27 | . 2 25 Time Decay 105 | 5 30 70 Lost Part 62 | . . 62 Squads Dispatched 1 | . 1 . Investigation . | . . . Extermination . | . . . Reinforcement 1 | . 1 . Assault . | . . . Garrison . | . . . Intercept . | . . . Searches Triggered . | . . . Construction Impeded . | . . . Haulers Reinforced . | . . . Active Scanning Responses . | . . . Cargo Convoy Interrupts . | . . . Stealth | -11 -10 -10 --------- Run | Yrd Mat Min Distress Signals . | . . . Communications Jammed . | . . . Distress Signals . | . . . Times Spotted 24 | . 5 19 Peak Tracking Total 17 | . 3 17 Tactical Retreats 2 | . . 2 Traps | -11 -10 -10 ------- Run | Yrd Mat Min Traps Triggered . | . . . Indirectly . | . . . Trap Hack Attempts . | . . . Triggered . | . . . Disarmed . | . . . Reprogrammed . | . . . Reused . | . . . Traps Extracted . | . . . Installed . | . . . Triggered . | . . . Machines | -11 -10 -10 ---------- Run | Yrd Mat Min Machines Disabled . | . . . Max in Single Turn . | . . . Machines Repaired . | . . . Machines Dismantled . | . . . Machines Sabotaged . | . . . Overloaded Fab Kills . | . . . Hacking | -11 -10 -10 --------- Run | Yrd Mat Min Machines Accessed 1 | . 1 . Terminals 1 | . 1 . Fabricators . | . . . Repair Stations . | . . . Recycling Units . | . . . Scanalyzers . | . . . Garrison Access . | . . . Total Hacks 3 | . 3 . Successful 3 | . 3 . Failed . | . . . Catastrophic . | . . . Database Lockouts . | . . . Manual 2 | . 2 . Terminals 3 | . 3 . Fabricators . | . . . Repair Stations . | . . . Recycling Units . | . . . Scanalyzers . | . . . Garrison Access . | . . . Terminal Hacks 2 | . 2 . Branch Access Points 1 | . 1 . Emergency Access Points 1 | . 1 . Fabricator Hacks . | . . . Repair Station Hacks . | . . . Recycling Unit Hacks . | . . . Scanalyzer . | . . . Garrison Access Hacks . | . . . Unauthorized Hacks 1 | . 1 . Terminals 1 | . 1 . Botnet 1 | . 1 . Fabricators . | . . . Repair Stations . | . . . Recycling Units . | . . . Scanalyzers . | . . . Garrison Access . | . . . Data Cores Recovered . | . . . Used . | . . . Hacking Detections . | . . . Full Trace Events . | . . . Feedback Events . | . . . Feedback Blocked . | . . . Robot Schematics Acquired . | . . . Robots Built . | . . . Authchips . | . . . Time . | . . . Total Robot Build Rating . | . . . Part Schematics Acquired . | . . . Parts Built . | . . . Authchips . | . . . Time . | . . . Total Part Build Rating . | . . . Part Studies Acquired . | . . . Parts Repaired . | . . . Time . | . . . Parts Recycled . | . . . Recycled Matter . | . . . Retrieved Matter . | . . . Retrieved Components . | . . . Parts Scanalyzed . | . . . Part Schematics Acquired . | . . . Parts Damaged . | . . . Bothacking | -11 -10 -10 ------------ Run | Yrd Mat Min Used RIF Installer . | . . . Robots Hacked . | . . . Non-combat . | . . . Combat . | . . . Robot Hacks Applied . | . . . Relay Couplers Released . | . . . Fabnet Peak Effective % . | . . . Robots Rewired . | . . . Allies Hacked . | . . . Hacks Repelled . | . . . Allies | -11 -10 -10 -------- Run | Yrd Mat Min Total Allies . | . . . Largest Group . | . . . Highest-Rated Group . | . . . Highest-Rated Ally . | . . . Total Orders . | . . . Ally Attacks . | . . . Total Damage . | . . . Kills . | . . . Allies Corrupted . | . . . Allies Melted . | . . . Intel | -11 -10 -10 ------- Run | Yrd Mat Min Active Infowar (turns) 315 | 4 179 132 Seismic 315 | 4 179 132 Robot Analysis Total . | . . . Derelict Logs Recovered 1 | . . 1 Drone Launches . | . . . Drone Recoveries . | . . . Exploration | -11 -10 -10 ------------- Run | Yrd Mat Min Turns Passed 408 | 69 179 160 Spaces Moved 231 | 13 132 86 Core . | . . . Treads . | . . . Legs 205 | 13 132 60 Wheels 26 | . . 26 Hover . | . . . Flight . | . . . Fastest Speed 80 | 120 120 80 Average Speed 120 | 120 120 121 Slowest Speed 190 | 120 120 190 Overloaded Moves . | . . . Propulsion Burnouts . | . . . Robots Hopped . | . . . Potential Cave-ins . | . . . Cave-ins Triggered . | . . . Exploration Rate (%) 20 | 2 35 25 Regions Visited 2 Branch Regions 1 Pre-discovered Areas 1 | . . 1 Known Exits Taken 1 | . 1 . Unknown Exits Taken 1 | 1 . . Scrap Searched . | . . . Spaces Dug 21 | . . 21 Terrain Destroyed 97 | . . 97 Melee . | . . . Projectile . | . . . AOE 97 | . . 97 Terrain Rammed . | . . . Walls Destroyed . | . . . Machines Disabled . | . . . Actions | -11 -10 -10 --------- Run | Yrd Mat Min Total 314 | 59 140 115 Wait 48 | 42 2 4 Move 229 | 12 131 86 Hop . | . . . Pick Up 2 | . 1 1 Fast Attach 1 | 1 . . Attach 3 | . . 3 Detach . | . . . Swap 2 | 1 . 1 Drop . | . . . Fire 29 | 3 6 20 Melee . | . . . Ram . | . . . Kick . | . . . Crush . | . . . Escape Stasis . | . . . Rewire . | . . . Trap . | . . . Miscellaneous . | . . . Route ------- -11/Scrapyard -10/Materials -10/Mines History --------- Turn | Location | Event 1 | -11/Scrapyard | Discovered new exit (range 2) 70 | -11/Scrapyard | Entered Materials 76 | -10/Materials | Identified exit to Mines 249 | -10/Materials | Entered Mines 256 | -10/Mines | Received a Rocket Launcher from a helpful Derelict 299 | -10/Mines | Assembled infested the area 299 | -10/Mines | Learned location of Zion (-7) 318 | -10/Mines | Build established: Mutant 375 | -10/Mines | Destroyed 19 combat bots 384 | -10/Mines | Core integrity fell below 50% 408 | -10/Mines | Core integrity fell below 20% 409 | -10/Mines | Destroyed by D-53 Grenadier with Mini Grenade Launcher Last Messages --------------- 00354_ as-75823 destroyed. 00358_ The unstable cave ceiling collapses. 00363_ Acquired 11 matter. 00367_ Acquired 2 matter. 00373_ Acquired 11 matter. 00381_ Ion Engine destroyed. 00381_ Seismic Detector destroyed. 00383_ The unstable cave ceiling collapses. 00384_ R-06 Scavenger collects Lgt. Ion Engine. 00385_ Assault Rifle destroyed. 00386_ U-05 Engineer lays Concrete. 00387_ R-06 Scavenger destroyed. 00387_ U-05 Engineer builds a Wall. 00388_ The unstable cave ceiling collapses. 00388_ K-01 Serf crushed by falling debris. 00388_ K-01 Serf destroyed. 00395_ The unstable cave ceiling collapses. 00405_ Wheel destroyed. 00405_ Aluminum Leg destroyed. 00407_ Assault Rifle destroyed. Map ----- +----------------------------------------------------+ | ??????# # #??? ##?????????????? | | ## #??# #?????????????? | | ### ### ## #?????????????? | | # ######????????????? | | % ### ### % #????????????? | | ## ??### ##???????????? | | ??????### ##????## # #??####?????? | | ????? ####?# #??## ##????? | | ??? ### #### # #??? ##???? | | ?? ????# ## #??? ##??? | | ? ??????# # #???# #??? | | ????????# #??## #??? | | ???????## [r #### #??? | | ???????# = #???? | | ???????## #???? | | ????????### # ##### #???? | | ??????????### #### #???? | | ??????????## ### ##???? | | ?????? ######????? | | ????? #?????????? | | ??????###### ## ##?????????? | | ???????????# # #### ##?????????? | | ???????????# ## ##?## ###???????? | | ???????????# ?####?## #???????? | | ???????????# ??????## ##??????? | | ??????????? ??????# @dd #??????? | | ?????????? ???????# #??????? | | ???????????????????## #??????? | | ????????????????????# #??????? | | ????????????????????## #??????? | | ?????????????????????### #??????? | | ???????????????????????##t #?????? | | ????????????????????????# #????? | | ????????????????????????# #???? | | ????????????????????????# #??? | | ????????????????????????# #??? | | ????????????????????????# ##??? | | ????????????????????????## #####???? | | ?????????????????????????#######???????? | | ???????????????????????????????????????? | | ???????????????????????????????????????? | | ???????????????????????????????????????? | | | | | | | | | | | | | | | | | +----------------------------------------------------+ Best States ------------- Heat Dissipation 25 Energy Generation 10 Energy Capacity 250 Matter Stores 289 Matter Capacity 300 Sight Range 16 Terrain Scan Density 10 Evasion (%) 55 Item Schematics ----------------- None Robot Schematics ------------------ None Fabricated ------------ Nothing Repaired ---------- Nothing Studied --------- None Alien Tech Used ----------------- None Achievements -------------- Exterminator Quick And Dirty Challenges ------------ None Game ------ Seed SignalGuidedFist Manual? 0 Play Time 00:05:20 Cumulative 47.7 hours Start 2026.03.06 @ 20:05:21 End 2026.03.06 @ 20:13:55 Sessions 1 Manual Loads 0 Difficulty Rogue Special Mode None Game No. 70 Rogue 45 Adventurer 25 Explorer 0 Win Type - Total 0 Types 0/0/0/0/0/0/0/0/0/0 Lore% 30 Gallery% 35 Achievement% 29 Wizard Run 0 Options --------- Layout 0 ASCII 0 Keyboard 1 Movement Numpad Keybinds 0 Fullscreen 1 Font 24/Smallcaps Map View 183x50 Zoom Use 0% Tactical HUD 1 Map Filters NONE Filters NONE Steam 1 RUN: 612aaacc-22c9-4a37-8b00-83ab2ae0274b